bitfinex/quotes_SOLUSD_20240714
["timestamp","ask_amount","ask_price","bid_price","bid_amount"]
[1720942735018,12.89074565,145.31,145.27,45.0]
[1720942736141,11.17,145.31,145.27,45.0]
[1720942736519,1.72066118,145.3,145.27,45.0]
[1720942736715,11.17,145.31,145.27,45.0]
[1720942737027,1.72071001,145.33,145.27,45.0]
[1720942737331,12.89064417,145.32,145.27,56.17]
[1720942737729,11.17,145.32,145.27,56.17]
[1720942737933,1.72060559,145.33,145.27,56.17]
[1720942738149,11.17,145.32,145.27,56.17]
[1720942738723,11.17,145.32,145.28,11.17]
[1720942738933,11.17,145.32,145.29,45.0]
[1720942740055,1.72050362,145.34,145.29,56.17]
[1720942740254,12.89050362,145.34,145.29,56.17]
[1720942740834,1.72030271,145.35,145.29,56.17]
[1720942741037,12.89030271,145.35,145.3,11.17]
[1720942741342,1.7202151,145.36,145.31,56.17]
[1720942741549,11.17,145.36,145.32,45.0]
[1720942742079,11.17,145.37,145.32,56.17]
[1720942742433,1.72006809,145.38,145.32,56.17]
[1720942742834,11.17,145.38,145.33,11.17]
[1720942743043,11.17,145.38,145.34,45.0]
[1720942743253,1.71991218,145.37,145.34,45.0]
[1720942743455,11.17,145.36,145.31,26.8593]
[1720942743636,11.17,145.36,145.32,45.0]
[1720942745633,1.71991218,145.37,145.32,56.17]
[1720942745859,11.17,145.37,145.32,56.17]
[1720942746151,12.88996539,145.36,145.32,45.0]
[1720942746357,11.17,145.36,145.32,45.0]
[1720942749460,11.17,145.36,145.31,15.6893]
[1720942749667,11.17,145.34,145.29,11.17]
[1720942749855,1.72011915,145.37,145.31,11.17]
[1720942750367,11.17,145.36,145.31,11.17]
[1720942750970,11.17,145.36,145.32,45.0]
[1720942753472,11.17,145.33,145.24,2.79850612]
[1720942753777,11.17,145.29,145.24,11.17]
[1720942754066,11.17,145.28,145.23,15.6893]
[1720942754267,11.17,145.28,145.23,26.8593]
[1720942755449,11.17,145.28,145.24,45.0]
[1720942755660,11.17,145.28,145.23,15.6893]
[1720942755847,11.17,145.28,145.23,26.8593]
[1720942757065,11.17,145.28,145.24,45.0]
[1720942757268,11.17,145.27,145.24,45.0]
[1720942757490,12.89096016,145.26,145.19,22.87162817]
[1720942757650,11.17,145.26,145.21,11.17]
[1720942757978,11.17,145.26,145.22,20.0]
[1720942758472,1.72117017,145.29,145.22,20.0]
[1720942758656,11.17,145.27,145.22,31.17]
[1720942758854,11.17,145.28,145.23,56.17]
[1720942759452,1.72117017,145.29,145.23,56.17]
[1720942759673,11.17,145.28,145.23,56.17]
[1720942759865,1.72096829,145.27,145.23,56.17]
[1720942760070,12.8911574,145.26,145.23,45.0]
[1720942760271,11.17,145.26,145.23,45.0]
[1720942761379,11.17,145.27,145.23,45.0]
[1720942765957,1.72120401,145.29,145.23,45.0]
[1720942765958,1.72120401,145.29,145.23,56.17]
[1720942766169,11.17,145.28,145.23,56.17]
[1720942767179,11.17,145.27,145.23,56.17]
[1720942767567,1.72120401,145.29,145.23,56.17]
[1720942767768,11.17,145.27,145.23,56.17]
[1720942768364,11.17,145.28,145.23,56.17]
[1720942770459,11.17,145.28,145.24,11.17]
[1720942770679,11.17,145.28,145.25,45.0]
[1720942771085,1.72120401,145.29,145.25,45.0]
[1720942771273,11.17,145.28,145.25,45.0]
[1720942772269,11.17,145.29,145.25,45.0]
[1720942774691,11.17,145.28,145.25,45.0]
[1720942776172,1.72088519,145.31,145.25,45.0]
[1720942776386,11.17,145.28,145.25,45.0]
[1720942778383,1.72088519,145.31,145.25,45.0]
[1720942778579,11.17,145.28,145.25,45.0]
[1720942784871,11.17,145.28,145.24,45.0]
[1720942785397,1.72088519,145.31,145.24,45.0]
[1720942785398,11.17,145.27,145.24,45.0]
[1720942785695,11.17,145.27,145.23,45.0]
[1720942786997,1.72088519,145.31,145.23,45.0]
[1720942787178,11.17,145.27,145.23,45.0]
[1720942796586,11.17,145.27,145.23,56.17]
[1720942797789,11.17,145.28,145.23,56.17]
[1720942801486,12.89098611,145.27,145.23,45.0]
[1720942801691,11.17,145.27,145.23,45.0]
[1720942802722,12.89112152,145.26,145.23,45.0]
[1720942802922,11.17,145.26,145.22,45.0]
[1720942803097,8.60344126,145.3,145.19,15.6893]
[1720942803098,11.17,145.23,145.19,15.6893]
[1720942803420,11.17,145.22,145.17,11.17]
[1720942803613,1.72153387,145.24,145.15,15.0144]
[1720942803797,11.17,145.21,145.16,11.17]
[1720942804406,1.72165945,145.23,145.16,11.17]
[1720942804625,6.8839,145.27,145.17,11.17]
[1720942804626,11.17,145.22,145.17,11.17]
[1720942805221,1.72165011,145.24,145.17,11.17]
[1720942805405,1.72121922,145.31,145.23,11.17]
[1720942805598,11.17,145.3,145.19,21.0973]
[1720942805799,1.72086421,145.29,145.24,11.17]
[1720942806012,11.17,145.3,145.25,56.17]
[1720942808321,1.72081482,145.29,145.25,56.17]
[1720942809596,1.72081439,145.31,145.25,56.17]
[1720942809819,12.89081439,145.31,145.26,11.17]
[1720942810124,12.89081439,145.31,145.27,45.0]
[1720942811315,1.72081439,145.31,145.27,45.0]
[1720942811625,12.89081439,145.31,145.27,45.0]
[1720942812140,11.17,145.28,145.2,20.0]
[1720942812308,12.89108551,145.27,145.22,11.17]
[1720942812505,11.17,145.27,145.22,11.17]
[1720942812912,1.72102733,145.26,145.22,11.17]
[1720942814127,1.72102733,145.26,145.23,45.0]
[1720942814309,11.17,145.27,145.23,45.0]
[1720942814906,1.72110479,145.26,145.23,45.0]
[1720942815419,11.17,145.27,145.23,45.0]
[1720942815624,1.72115556,145.3,145.23,45.0]
[1720942815924,11.17,145.27,145.23,45.0]
[1720942816123,11.17,145.28,145.23,56.17]
[1720942816303,1.72106069,145.29,145.23,56.17]
[1720942816506,11.17,145.28,145.23,56.17]
[1720942816828,11.17,145.29,145.24,11.17]
[1720942817005,11.17,145.29,145.25,45.0]
[1720942818604,11.17,145.29,145.25,56.17]
[1720942819231,11.17,145.29,145.25,45.0]
[1720942820833,1.72089236,145.28,145.25,45.0]
[1720942821529,11.17,145.29,145.25,45.0]
[1720942823527,11.17,145.3,145.25,56.17]
[1720942823732,1.72088319,145.29,145.25,56.17]
[1720942824508,11.17,145.3,145.25,56.17]
[1720942824708,1.72088629,145.29,145.25,56.17]
[1720942825408,11.17,145.3,145.25,56.17]
[1720942825409,12.89084524,145.3,145.25,56.17]
[1720942826425,11.17,145.3,145.25,56.17]
[1720942828534,12.89074752,145.29,145.25,45.0]
[1720942828838,12.89074752,145.29,145.25,43.0]
[1720942829536,11.17,145.29,145.25,43.0]
[1720942830923,1.72086373,145.28,145.25,43.0]
[1720942833750,11.17,145.27,145.22,11.17]
[1720942834043,1.72113514,145.26,145.23,45.0]
[1720942834735,11.17,145.25,145.2,26.1844]
[1720942835040,1.7213288,145.24,145.2,26.1844]
[1720942835427,11.17,145.25,145.2,26.1844]
[1720942836136,11.17,145.25,145.21,45.0]
[1720942836838,11.17,145.26,145.21,56.17]
[1720942837027,1.72132773,145.25,145.22,11.17]
[1720942837340,11.17,145.27,145.22,11.17]
[1720942837543,1.72125848,145.28,145.24,11.17]
[1720942838235,11.17,145.27,145.23,11.17]
[1720942838739,1.72115745,145.26,145.22,11.17]
[1720942838949,1.72115745,145.26,145.23,45.0]
[1720942839627,11.17,145.27,145.23,45.0]
[1720942839824,1.72120437,145.26,145.23,45.0]
[1720942840524,12.89120263,145.28,145.23,56.17]
[1720942841048,1.72120263,145.28,145.23,45.0]
[1720942841225,11.17,145.26,145.2,15.0144]
[1720942841423,11.17,145.24,145.2,15.0144]
[1720942841626,11.17,145.24,145.21,45.0]
[1720942843135,11.17,145.25,145.21,45.0]
[1720942843339,1.72141736,145.24,145.21,45.0]
[1720942844527,1.72141736,145.24,145.2,26.1844]
[1720942846165,1.72141359,145.28,145.21,56.17]
[1720942846468,11.17,145.26,145.21,56.17]
[1720942846755,1.72141328,145.29,145.25,11.17]
[1720942847172,12.89141328,145.29,145.24,11.17]
[1720942847363,12.89141328,145.29,145.21,45.0]
[1720942847364,11.17,145.28,145.23,11.17]
[1720942847539,1.72121244,145.27,145.23,11.17]
[1720942848761,1.72119239,145.26,145.23,11.17]
[1720942849146,1.72119239,145.26,145.22,11.17]
[1720942850266,12.89119239,145.26,145.2,21.3229]
[1720942850556,15.6352,145.31,145.19,11.17]
[1720942850557,11.17,145.24,145.19,11.17]
[1720942850753,1.7215826,145.23,145.19,11.17]
[1720942851268,12.8915826,145.23,145.19,11.17]
[1720942851570,11.17,145.23,145.18,11.17]
[1720942851740,11.17,145.23,145.19,45.0]
[1720942855560,1.72160868,145.22,145.19,45.0]
[1720942855758,11.17,145.23,145.19,45.0]
[1720942856553,11.17,145.24,145.19,56.17]
[1720942856752,1.72163322,145.23,145.19,56.17]
[1720942858470,11.17,145.25,145.2,11.17]
[1720942858645,1.72152968,145.24,145.2,11.17]
[1720942858965,1.72152435,145.25,145.2,11.17]
[1720942859173,1.72139088,145.26,145.21,56.17]
[1720942859368,1.72139088,145.26,145.22,11.17]
[1720942860064,11.17,145.28,145.23,11.17]
[1720942860247,1.72124825,145.27,145.23,11.17]
[1720942860449,1.72125126,145.26,145.23,11.17]
[1720942860647,1.72125126,145.26,145.22,11.17]
[1720942861267,1.72124488,145.26,145.22,11.17]
[1720942861958,1.72124088,145.29,145.22,11.17]
[1720942862183,11.17,145.28,145.23,56.17]
[1720942862471,1.72107062,145.27,145.19,45.0]
[1720942862681,12.89126622,145.26,145.21,11.17]
[1720942863552,1.72138273,145.25,145.21,11.17]
[1720942866472,12.89138273,145.25,145.2,11.17]
[1720942866674,1.72139437,145.24,145.21,45.0]
[1720942868653,1.72151539,145.23,145.19,11.17]
[1720942868861,12.89151539,145.23,145.16,22.1454]
[1720942869077,12.89151539,145.23,145.18,11.17]
[1720942869373,11.17,145.23,145.18,11.17]
[1720942869752,1.72162643,145.22,145.18,11.17]
[1720942870375,1.72162643,145.22,145.19,11.17]
[1720942870672,1.72167916,145.23,145.19,11.17]
[1720942871056,12.89167916,145.23,145.18,11.17]
[1720942871880,1.72168148,145.22,145.17,11.17]
[1720942872203,11.17,145.21,145.16,11.17]
[1720942872361,1.72183513,145.2,145.14,7.88085777]
[1720942872567,11.17,145.19,145.15,20.0]
[1720942873251,11.17,145.2,145.15,31.17]
[1720942873447,1.72199251,145.19,145.15,31.17]
[1720942873658,1.72199251,145.19,145.16,45.0]
[1720942874982,11.17,145.21,145.16,56.17]
[1720942876473,1.72182569,145.2,145.16,45.0]
[1720942876785,1.72182569,145.2,145.16,56.17]
[1720942877084,1.7219352,145.24,145.18,11.17]
[1720942877382,1.72162066,145.23,145.19,11.17]
[1720942878675,11.17,145.22,145.17,11.17]
[1720942878980,11.17,145.22,145.18,45.0]
[1720942879180,11.17,145.23,145.18,56.17]
[1720942879381,1.72168643,145.22,145.18,56.17]
[1720942880068,11.17,145.21,145.15,20.0]
[1720942880271,1.72190334,145.2,145.16,11.17]
[1720942880468,11.17,145.21,145.16,11.17]
[1720942880774,11.17,145.22,145.17,11.17]
[1720942881082,1.72187541,145.21,145.17,11.17]
[1720942884481,12.89187523,145.22,145.17,11.17]
[1720942884693,11.17,145.22,145.18,45.0]
[1720942887490,1.72175527,145.21,145.18,45.0]
[1720942888687,11.17,145.22,145.18,45.0]
[1720942890364,11.17,145.22,145.18,56.17]
[1720942890691,11.17,145.23,145.18,56.17]
[1720942890987,12.89160477,145.22,145.18,45.0]
[1720942891184,11.17,145.22,145.18,45.0]
[1720942891592,11.17,145.22,145.13,20.0]
[1720942891593,17.3613,145.2,145.13,20.0]
[1720942891778,1.72214702,145.19,145.15,11.17]
[1720942898473,7.91344218,145.2,145.16,11.17]
[1720942898674,6.1913,145.2,145.16,56.17]
[1720942898876,6.1913,145.2,145.17,11.17]
[1720942900479,27.1106,145.21,145.17,11.17]
[1720942900993,15.9406,145.21,145.17,11.17]
[1720942901994,1.72184628,145.2,145.16,56.17]
[1720942902195,1.72184628,145.2,145.16,11.17]
[1720942904100,1.72198295,145.2,145.16,11.17]
[1720942905194,28.83258267,145.21,145.16,11.17]
[1720942906193,15.9406,145.21,145.17,11.17]
[1720942906787,1.72187831,145.2,145.16,11.17]
[1720942906986,17.66260878,145.21,145.17,11.17]
[1720942907903,1.72182872,145.2,145.16,11.17]
[1720942908299,17.66251342,145.21,145.16,11.17]
[1720942908486,17.66251342,145.21,145.17,45.0]
[1720942908684,17.66251342,145.21,145.17,56.17]
[1720942909305,15.9406,145.21,145.17,56.17]
[1720942910285,1.721831,145.2,145.17,45.0]
[1720942910487,1.721831,145.2,145.13,20.0]
[1720942910488,1.721831,145.2,145.16,11.17]
[1720942912708,17.66251135,145.21,145.16,11.17]
[1720942913593,15.9406,145.21,145.16,11.17]
[1720942915418,1.72191165,145.2,145.16,11.17]
[1720942915779,17.66251304,145.21,145.16,11.17]
[1720942916204,19.08320998,145.23,145.18,11.17]
[1720942917486,19.08320998,145.23,145.19,11.17]
[1720942917487,6.1913,145.23,145.19,11.17]
[1720942917892,7.9128561,145.23,145.17,45.0]
[1720942918091,6.1913,145.23,145.19,11.17]
[1720942920608,6.1913,145.23,145.2,45.0]
[1720942920814,15.2045,145.25,145.2,45.0]
[1720942920991,15.2045,145.25,145.23,11.17]
[1720942921194,15.2045,145.25,145.22,11.17]
[1720942921589,1.7213157,145.26,145.22,11.17]
[1720942922722,7.88396447,145.27,145.22,11.17]
[1720942922891,1.72126447,145.26,145.22,11.17]
[1720942923418,1.72126447,145.26,145.21,11.17]
[1720942923419,12.89126447,145.26,145.21,11.17]
[1720942923595,12.89126447,145.26,145.22,45.0]
[1720942927497,11.17,145.25,145.2,11.17]
[1720942927704,12.89146453,145.24,145.17,16.4966]
[1720942927909,12.89146453,145.24,145.19,11.17]
[1720942927910,11.17,145.24,145.19,11.17]
[1720942928108,11.17,145.24,145.2,45.0]
[1720942928617,1.72143922,145.23,145.19,11.17]
[1720942929712,1.72152805,145.26,145.2,11.17]
[1720942929912,11.17,145.25,145.2,11.17]
[1720942930224,11.17,145.25,145.21,45.0]
[1720942930719,12.89152805,145.26,145.21,56.17]
[1720942931295,1.72152805,145.26,145.21,56.17]
[1720942931495,11.17,145.25,145.21,56.17]
[1720942933318,12.89152805,145.26,145.21,56.17]
[1720942934506,11.17,145.25,145.21,56.17]
[1720942934825,11.17,145.25,145.21,45.0]
[1720942935222,1.72152805,145.26,145.21,45.0]
[1720942935420,7.88399216,145.27,145.21,45.0]
[1720942935717,19.05399216,145.27,145.22,11.17]
[1720942935902,19.05399216,145.27,145.23,45.0]
[1720942936310,7.88399216,145.27,145.23,45.0]
[1720942936503,19.05399216,145.27,145.23,45.0]
[1720942936707,7.88399216,145.27,145.23,45.0]
[1720942936913,19.05378423,145.27,145.23,45.0]
[1720942937422,7.88378423,145.27,145.23,56.17]
[1720942939127,19.05378423,145.27,145.23,45.0]
[1720942940127,1.72108745,145.26,145.23,45.0]
[1720942940332,12.89108745,145.26,145.21,11.17]
[1720942940537,12.89108745,145.26,145.22,45.0]
[1720942948139,1.72108745,145.26,145.22,45.0]
[1720942948628,1.72108745,145.26,145.22,56.17]
[1720942949230,19.05392452,145.27,145.22,56.17]
[1720942949814,17.3327,145.27,145.22,56.17]
[1720942950638,6.1627,145.27,145.23,11.17]
[1720942951239,17.3327,145.27,145.22,56.17]
[1720942951540,1.72117945,145.26,145.22,56.17]
[1720942952546,19.05387912,145.27,145.22,56.17]
[1720942953849,7.88387912,145.27,145.23,11.17]
[1720942954444,6.1627,145.27,145.23,11.17]
[1720942958536,34.80907561,145.28,145.23,11.17]
[1720942959245,23.63907561,145.28,145.24,11.17]
[1720942960547,34.80907561,145.28,145.23,11.17]
[1720942961743,34.80907561,145.28,145.24,11.17]
[1720942961744,15.0348,145.28,145.24,11.17]
[1720942962138,26.2048,145.28,145.23,11.17]
[1720942962347,26.2048,145.28,145.24,45.0]
[1720942966232,15.0348,145.28,145.24,56.17]
[1720942966438,1.72093907,145.3,145.26,11.17]
[1720942966633,6.0851,145.31,145.24,45.0]
[1720942966634,7.8057862,145.31,145.27,11.17]
[1720942966826,18.9757862,145.31,145.27,11.17]
[1720942967547,17.2551,145.31,145.28,45.0]
[1720942967731,7.80559908,145.31,145.28,45.0]
[1720942967934,7.80559908,145.31,145.27,11.17]
[1720942973155,7.80559908,145.31,145.28,45.0]
[1720942973946,6.0851,145.31,145.28,45.0]
[1720942978555,6.0851,145.31,145.28,56.17]
[1720942978768,6.1877,145.35,145.29,11.17]
[1720942979049,7.90799811,145.35,145.3,11.17]
[1720942979248,19.07799811,145.35,145.3,11.17]
[1720942979455,25.95789811,145.35,145.3,11.17]
[1720942980531,19.07799811,145.35,145.3,11.17]
[1720942980940,25.95789811,145.35,145.3,11.17]
[1720942981139,14.78809811,145.35,145.29,11.17]
[1720942981346,11.17,145.34,145.3,56.17]
[1720942981560,1.72040666,145.33,145.29,11.17]
[1720942981853,1.72040666,145.33,145.28,45.0]
[1720942982054,12.89040666,145.33,145.28,56.17]
[1720942982264,12.89038319,145.32,145.27,11.17]
[1720942983157,11.17,145.32,145.27,11.17]
[1720942983338,12.89053415,145.33,145.28,11.17]
[1720942983536,1.72054902,145.32,145.28,11.17]
[1720942989962,12.89054902,145.32,145.21,19.08766198]
[1720942990152,6.8805,145.34,145.26,11.17]
[1720942990153,1.72073698,145.31,145.26,11.17]
[1720942990348,11.17,145.31,145.26,11.17]
[1720942990558,1.72066948,145.3,145.26,11.17]
[1720942992936,11.17,145.31,145.26,11.17]
[1720942993136,11.17,145.32,145.27,11.17]
[1720942993447,12.8906987,145.32,145.27,11.17]
[1720942994360,13.0677,145.35,145.28,11.17]
[1720942994361,1.72066297,145.31,145.28,11.17]
[1720942995359,1.72066311,145.32,145.28,11.17]
[1720942995735,13.0677,145.35,145.28,11.17]
[1720942995736,1.72066311,145.34,145.28,11.17]
[1720942996047,1.72066311,145.34,145.29,56.17]
[1720942996248,12.89066311,145.34,145.29,56.17]
[1720942996451,11.17,145.33,145.21,39.79766198]
[1720942996657,1.72053571,145.32,145.28,11.17]
[1720942997343,1.72053571,145.32,145.22,45.0]
[1720942997559,1.72053571,145.32,145.28,11.17]
[1720942998236,12.89053571,145.32,145.28,11.17]
[1720942998532,11.17,145.32,145.28,11.17]
[1720942999444,1.72054481,145.34,145.23,20.0]
[1720942999445,12.89054481,145.34,145.29,11.17]
[1720943000754,1.72054481,145.34,145.29,11.17]
[1720943000943,12.89054481,145.34,145.29,11.17]
[1720943001668,11.17,145.33,145.28,11.17]
[1720943001966,11.17,145.33,145.29,45.0]
[1720943002369,12.89038521,145.32,145.23,20.0]
[1720943002540,12.89038521,145.32,145.27,11.17]
[1720943002870,11.17,145.32,145.27,11.17]
[1720943003062,1.72058231,145.34,145.28,11.17]
[1720943003063,11.17,145.33,145.28,11.17]
[1720943003258,11.17,145.33,145.22,20.0]
[1720943003567,1.72053656,145.32,145.28,11.17]
[1720943004765,1.72053656,145.32,145.23,45.0]
[1720943004970,1.72053656,145.32,145.28,11.17]
[1720943006155,12.89051446,145.34,145.29,56.17]
[1720943007054,12.89051446,145.34,145.29,11.17]
[1720943007281,11.17,145.33,145.24,20.0]
[1720943007563,1.72055507,145.32,145.28,11.17]
[1720943009057,11.17,145.33,145.27,11.17]
[1720943009258,1.72050158,145.32,145.28,56.17]
[1720943009495,1.72050158,145.32,145.28,11.17]
[1720943012281,1.72050158,145.32,145.25,45.0]
[1720943012473,1.72050158,145.32,145.28,11.17]
[1720943014178,12.89051144,145.34,145.29,11.17]
[1720943014476,12.89051144,145.34,145.3,45.0]
[1720943016755,1.72051144,145.34,145.3,45.0]
[1720943016956,1.72051144,145.34,145.3,56.17]
[1720943022358,12.89051144,145.34,145.3,45.0]
[1720943025468,12.89051144,145.34,145.29,11.17]
[1720943026259,11.17,145.33,145.28,11.17]
[1720943026467,11.17,145.33,145.29,45.0]
[1720943027304,1.72037719,145.32,145.26,20.0]
[1720943027491,1.72037719,145.32,145.25,15.7775]
[1720943027492,11.17,145.31,145.27,11.17]
[1720943027683,1.72068715,145.3,145.26,11.17]
[1720943028275,1.72068715,145.3,145.27,11.17]
[1720943028489,1.72068715,145.3,145.21,15.4206]
[1720943028688,1.72068715,145.3,145.27,11.17]
[1720943029777,1.72068715,145.3,145.26,11.17]
[1720943031587,1.72068715,145.3,145.22,65.0]
[1720943031788,12.89068715,145.3,145.22,65.0]
[1720943032092,1.72081826,145.29,145.25,11.17]
[1720943032299,1.72081826,145.29,145.26,45.0]
[1720943034595,12.89081826,145.29,145.22,20.0]
[1720943034903,12.89081826,145.29,145.24,11.17]
[1720943034904,1.72096425,145.28,145.24,11.17]
[1720943035201,1.72096425,145.28,145.22,20.0]
[1720943035403,12.89096425,145.28,145.23,11.17]
[1720943035569,12.89096425,145.28,145.24,20.0]
[1720943035774,1.72112297,145.27,145.24,20.0]
[1720943037403,1.72112297,145.27,145.23,11.17]
[1720943037596,1.72112297,145.27,145.24,20.0]
[1720943038076,1.72111487,145.3,145.24,31.17]
[1720943038282,1.72111487,145.3,145.26,11.17]
[1720943039187,7.79535444,145.31,145.27,11.17]
[1720943040704,6.0746,145.31,145.28,11.17]
[1720943041094,6.0746,145.31,145.25,45.0]
[1720943041291,6.0746,145.31,145.27,11.17]
[1720943041605,6.0746,145.31,145.28,45.0]
[1720943041980,6.0746,145.31,145.28,56.17]
[1720943042180,6.0746,145.31,145.29,11.17]
[1720943044007,16.4053,145.32,145.29,11.17]
[1720943048108,11.17,145.34,145.29,11.17]
[1720943048310,12.89037265,145.34,145.29,11.17]
[1720943049210,11.17,145.33,145.29,11.17]
[1720943049387,1.72041858,145.32,145.28,56.17]
[1720943049713,12.89041858,145.32,145.28,45.0]
[1720943050415,11.17,145.32,145.28,45.0]
[1720943050795,12.89055073,145.31,145.26,11.17]
[1720943051007,1.7207817,145.3,145.26,11.17]
[1720943055306,11.17,145.31,145.26,11.17]
[1720943055508,11.17,145.31,145.24,20.0]
[1720943055509,11.17,145.32,145.27,11.17]
[1720943055711,1.72073815,145.31,145.27,11.17]
[1720943057516,1.72073749,145.33,145.28,56.17]
[1720943057818,12.89073749,145.33,145.28,56.17]
[1720943058118,1.72042639,145.32,145.28,56.17]
[1720943058696,12.89042639,145.32,145.28,45.0]
[1720943058910,11.17,145.32,145.28,45.0]
[1720943061723,11.17,145.33,145.28,56.17]
[1720943062810,12.8904604,145.34,145.29,11.17]
[1720943063511,7.78881354,145.35,145.3,45.0]
[1720943063726,6.0684,145.35,145.31,11.17]
[1720943064105,6.0684,145.35,145.32,11.17]
[1720943066204,6.0684,145.35,145.31,11.17]
[1720943067307,7.78850007,145.35,145.31,11.17]
[1720943067603,7.78850007,145.35,145.28,45.0]
[1720943067809,7.78850007,145.35,145.31,11.17]
[1720943069807,6.0684,145.35,145.31,11.17]
[1720943070128,7.78850109,145.35,145.31,11.17]
[1720943071004,6.0684,145.35,145.31,11.17]
[1720943071740,7.78850081,145.35,145.31,11.17]
[1720943072118,11.17,145.34,145.28,45.0]
[1720943072322,11.17,145.34,145.29,31.17]
[1720943072617,11.17,145.34,145.3,45.0]
[1720943073739,11.17,145.34,145.3,56.17]
[1720943074241,7.78850081,145.35,145.3,56.17]
[1720943074414,18.95850081,145.35,145.3,56.17]
[1720943074933,6.0684,145.35,145.31,11.17]
[1720943075123,6.0684,145.35,145.32,11.17]
[1720943075819,7.89538353,145.39,145.32,11.17]
[1720943076029,11.17,145.37,145.32,11.17]
[1720943077142,1.72000669,145.38,145.32,11.17]
[1720943077356,12.89000669,145.38,145.33,56.17]
[1720943077641,12.89000669,145.38,145.33,11.17]
[1720943078248,1.72000669,145.38,145.33,11.17]
[1720943078453,1.72000669,145.38,145.34,45.0]
[1720943078623,1.72000669,145.38,145.34,56.17]
[1720943079254,7.89507551,145.39,145.34,56.17]
[1720943079444,19.06507551,145.39,145.34,56.17]
[1720943081728,7.89507551,145.39,145.34,56.17]
[1720943081930,19.06507551,145.39,145.34,56.17]
[1720943082370,7.89507551,145.39,145.35,11.17]
[1720943084752,19.06507551,145.39,145.34,56.17]
[1720943084960,7.89507551,145.39,145.34,56.17]
[1720943085131,19.06507551,145.39,145.34,56.17]
[1720943085832,7.89507551,145.39,145.34,56.17]
[1720943086132,19.06507551,145.39,145.34,56.17]
[1720943088650,11.17,145.37,145.29,36.6337]
[1720943088953,12.89000289,145.36,145.31,11.17]
[1720943089154,11.17,145.36,145.32,65.0]
[1720943090458,11.17,145.37,145.32,76.17]
[1720943090665,1.72002695,145.36,145.32,76.17]
[1720943092153,1.72002695,145.36,145.33,11.17]
[1720943093868,1.72002695,145.36,145.32,65.0]
[1720943094056,1.72002695,145.36,145.32,76.17]
[1720943094356,12.89002616,145.37,145.32,76.17]
[1720943095358,11.17,145.37,145.32,76.17]
[1720943095565,12.89002338,145.36,145.32,20.0]
[1720943095863,1.72008618,145.35,145.31,11.17]
[1720943096053,1.72008618,145.35,145.32,20.0]
[1720943096752,12.89008618,145.35,145.25,21.9869]
[1720943096951,1.72021822,145.34,145.3,11.17]
[1720943098444,11.17,145.36,145.31,11.17]
[1720943098640,1.72019598,145.35,145.31,11.17]
[1720943098849,1.72019598,145.35,145.32,11.17]